[Event "Elegant Academy GM Aspirant-II"]
[Site "Dhaka"]
[Date "2024.02.22"]
[Round "2.4"]
[White "Rahman, Ziaur"]
[Black "Siddharth, Jagadeesh"]
[Result "1/2-1/2"]
[ECO "E69"]
[WhiteElo "2428"]
[BlackElo "2457"]
[Annotator "ChessBase"]
[PlyCount "60"]
[EventDate "2024.02.21"]
[EventType "tourn"]
[EventCountry "BAN"]
[SourceTitle "playchess.com"]
[Source "ChessBase"]
[SourceQuality "1"]
[TimeControl "5400+30"]

1. c4 {[%emt 0:00:12]} Nf6 {[%emt 0:02:17]} 2. g3 {[%emt 0:00:05]} g6 {[%emt 0:00:05]} 3. Bg2 {[%emt 0:00:35]} Bg7 {[%emt 0:00:12]} 4. Nc3 {[%emt 0:00:07]} O-O {[%emt 0:00:06]} 5. d4 {[%emt 0:00:19]} d6 {[%emt 0:00:06]} 6. h3 {[%emt 0:00:33]} c6 {[%emt 0:02:35]} 7. e4 {[%emt 0:01:41]} e5 {[%emt 0:01:50]} 8. Nf3 {[%emt 0:02:16]} exd4 {[%emt 0:06:57]} 9. Nxd4 {[%emt 0:00:08]} Nbd7 {[%emt 0:02:19]} 10. O-O {[%emt 0:00:18]} Nb6 {[%emt 0:06:13]} 11. b3 {[%emt 0:05:55]} d5 {[%emt 0:02:57]} 12. exd5 {[%emt 0:01:46]} cxd5 {[%emt 0:00:11]} 13. Ba3 {[%emt 0:03:04]} Re8 {[%emt 0:02:03]} 14. Qc2 {[%emt 0:12:57]} Ne4 {[%emt 0:14:18]} 15. Nxe4 {[%emt 0:02:57]} Rxe4 {[%emt 0:05:19]} 16. Bxe4 {[%emt 0:03:38]} dxe4 {[%emt 0:00:04]} 17. Rfd1 {[%emt 0:04:50]} Bxh3 {[%emt 0:00:02]} 18. Qxe4 {[%emt 0:00:57]} Qd7 {[%emt 0:00:02]} 19. Nb5 {[%emt 0:15:59]} Qg4 {[%emt 0:01:59]} 20. Qxg4 {[%emt 0:02:19]} Bxg4 {[%emt 0:00:07]} 21. Bc5 {[%emt 0:02:42]} Bxa1 {[%emt 0:05:38]} 22. Rxa1 {[%emt 0:00:05]} Nd7 {[%emt 0:00:44]} 23. Bxa7 {[%emt 0:00:53]} Ne5 {[%emt 0:00:01]} 24. Be3 {[%emt 0:01:34]} Rd8 {[%emt 0:01:51]} 25. Nc3 {[%emt 0:01:23]} Bf3 {[%emt 0:01:24]} 26. Nd5 {[%emt 0:05:02]} Bxd5 {[%emt 0:01:45]} 27. cxd5 {[%emt 0:00:04]} Rxd5 {[%emt 0:00:05]} 28. Rc1 {[%emt 0:00:35]} Nc6 {[%emt 0:01:35]} 29. Rc4 {[%emt 0:00:52]} f6 {[%emt 0:01:11]} 30. Kg2 {[%emt 0:00:46]} Rd1 {[%emt 0:41:34]} 1/2-1/2

[Event "Elegant Academy GM Aspirant-II"]
[Site "Dhaka"]
[Date "2024.02.22"]
[Round "2.5"]
[White "Liyanage, Ranindu Dilshan"]
[Black "Murshed, Niaz"]
[Result "1/2-1/2"]
[ECO "E15"]
[WhiteElo "2366"]
[BlackElo "2363"]
[Annotator "TA"]
[PlyCount "62"]
[EventDate "2024.02.21"]
[EventType "tourn"]
[EventCountry "BAN"]
[SourceTitle "playchess.com"]
[Source "ChessBase"]
[SourceQuality "1"]
[TimeControl "5400+30"]

{[%evp 14,62,6,-13,12,0,0,3,5,0,2,0,0,0,0,0,6,0,0,0,8,-26,-20,-18,-25,-77,0,0,0,-6,0,-4,-8,0,-7,-3,0,-11,-5,-14,-24,-37,29,37,36,-2,-18,-9,0,0,0]} 1. d4 {[%emt 0:01:13]} Nf6 {[%emt 0:00:20]} 2. c4 {[%emt 0:00:14]} e6 {[%emt 0:00:22]} 3. Nf3 {[%emt 0:00:08]} b6 {[%emt 0:02:08]} 4. g3 {[%emt 0:00:37]} Ba6 {[%emt 0:03:37]} 5. Nbd2 {[%emt 0:00:48]} c5 {[%emt 0:00:25]} 6. Bg2 {[%emt 0:07:01]} Bb7 {[%emt 0:00:30]} 7. d5 {[%emt 0:02:54]} exd5 {[%emt 0:00:56]} 8. Nh4 {[%emt 0:00:06]} g6 {[%emt 0:26:12]} 9. cxd5 {[%emt 0:06:54]} Bg7 {[%emt 0:00:11][%cal Od7d6]} 10. Nc4 {[%emt 0:03:14]} O-O {[%emt 0:00:24]} 11. O-O {[%emt 0:05:13]} Ba6 {[%emt 0:03:31]} 12. Qc2 {[%emt 0:05:38]} d6 {[%emt 0:05:23]} 13. a4 {[%emt 0:02:07][%cal Ba2a4,Ba4b5][%mdl 32]} Qe7 {[%emt 0:02:49]} 14. Ra3 {[%emt 0:11:31]} Bxc4 {[%emt 0:03:10]} 15. Qxc4 {[%emt 0:00:07]} Nbd7 {[%emt 0:00:31]} 16. Nf3 {[%emt 0:10:20]} a6 {[%emt 0:02:06]} 17. Rb3 {[%emt 0:03:31] [#]} b5 $1 {[%emt 0:08:36]} 18. axb5 {[%emt 0:05:21]} Nb6 {[%emt 0:00:09][%csl LRc4,LRd5]} 19. Qh4 {[%emt 0:08:51]} (19. Qc2 $11 {remains equal.}) 19... Qc7 {[%emt 0:14:27]} (19... Qxe2 $17 20. Qf4 Nfxd5 (20... Nbxd5 21. Qxd6 Rfd8 22. Qc6 $11)) 20. Ng5 {[%emt 0:03:16]} h6 {[%emt 0:01:52] ...c4 would now be deadly.} 21. Ne4 {[%emt 0:00:52]} Nxe4 {[%emt 0:01:28]} 22. Bxe4 {[%emt 0:00:28]} axb5 {[%emt 0:03:26] ...Ra4 is the strong threat.} 23. Bf3 {[%emt 0:04:00]} ({Much worse is} 23. Bxh6 Ra4 24. f3 (24. Rxb5 Bxh6 25. b3 Rd4 $17) (24. Bxg7 Kxg7 25. Rxb5 f5 $17) 24... b4 $17) 23... Ra4 {[%emt 0:07:19]} 24. Qh3 {[%emt 0:00:06]} h5 {[%emt 0:02:39]} 25. Rxb5 {[%emt 0:01:06]} Nd7 {[%emt 0:00:07]} 26. Bd2 {[%emt 0:07:51]} Ne5 {[%emt 0:03:08]} 27. Rc1 {[%emt 0:00:19]} f5 {[%emt 0:01:21]} (27... Rb8 $15 28. Rxb8+ Qxb8) 28. Qf1 {[%emt 0:01:25]} Qd7 {[%emt 0:00:41]} 29. Ra5 {[%emt 0:00:31]} Rxa5 {[%emt 0:00:14] The position is equal.} 30. Bxa5 {[%emt 0:00:05]} Nxf3+ {[%emt 0:00:06]} 31. exf3 {[%emt 0:00:06]} Bxb2 {[%emt 0:00:03] Weighted Error Value: White=0.09 (flawless) /Black=0.10 (very precise) .  Mistake:       	White=1     	Black=2      Inaccurate:     	White=2     	---        OK:         	White=9     	Black=16     Best:        	---       	Black=1} 1/2-1/2

[Event "Elegant Academy GM Aspirant-II"]
[Site "Dhaka"]
[Date "2024.02.23"]
[Round "3.1"]
[White "Murshed, Niaz"]
[Black "Aradhya, Garg"]
[Result "1/2-1/2"]
[ECO "C50"]
[WhiteElo "2363"]
[BlackElo "2390"]
[Annotator "TA"]
[PlyCount "33"]
[EventDate "2024.02.21"]
[EventType "tourn"]
[EventCountry "BAN"]
[SourceTitle "playchess.com"]
[Source "ChessBase"]
[SourceQuality "1"]
[TimeControl "5400+30"]

{[%evp 12,33,14,-1,0,0,0,0,0,0,0,0,6,9,29,0,0,0,0,0,12,0,0,0]} 1. e4 {[%emt 0:00:18]} e5 {[%emt 0:00:04]} 2. Nf3 {[%emt 0:00:07]} Nc6 {[%emt 0:00:14]} 3. Bc4 {[%emt 0:00:06]} Nf6 {[%emt 0:00:07]} 4. d3 {[%emt 0:00:06]} Bc5 {[%emt 0:08:53]} 5. Nc3 {[%emt 0:00:35]} O-O {[%emt 0:01:25]} 6. O-O {[%emt 0:13:11]} d6 {[%emt 0:06:42]} 7. a3 {[%emt 0:06:17]} Bg4 {[%emt 0:08:29]} 8. h3 {[%emt 0:03:11]} Bxf3 {[%emt 0:02:14]} 9. Qxf3 {[%emt 0:00:10]} Nd4 {[%emt 0:00:01][%csl LRc2,LRf3] Dodges Ne2} 10. Qd1 {[%emt 0:00:10]} c6 {[%emt 0:00:16]} 11. Ba2 {[%emt 0:03:34]} b5 {[%emt 0:02:52]} 12. Ne2 {[%emt 0:02:08]} d5 {[%emt 0:01:31]} 13. Ng3 {[%emt 0:03:48]} Ne6 {[%emt 0:04:27] The position is equal.} 14. Qf3 {[%emt 0:03:32]} Nd4 {[%emt 0:00:07][%csl LRc2,LRf3]} 15. Qd1 {[%emt 0:00:04]} Ne6 {[%emt 0:03:18] Prevents Bg5.} 16. Qe2 {[%emt 0:00:09]} Nd4 {[%emt 0:00:08]} 17. Qd1 {[%emt 0:00:05] A rather calm draw.   Weighted Error Value: White=0.07 (flawless) /Black=0.01 (flawless) .  Inaccurate:     	White=1     	---        OK:         	White=5     	Black=8} 1/2-1/2

[Event "Elegant Academy GM Aspirant-II"]
[Site "Dhaka"]
[Date "2024.02.23"]
[Round "3.2"]
[White "Siddharth, Jagadeesh"]
[Black "Liyanage, Ranindu Dilshan"]
[Result "1-0"]
[ECO "D02"]
[WhiteElo "2457"]
[BlackElo "2366"]
[Annotator "TA"]
[PlyCount "71"]
[EventDate "2024.02.21"]
[EventType "tourn"]
[EventCountry "BAN"]
[SourceTitle "playchess.com"]
[Source "ChessBase"]
[SourceQuality "1"]
[TimeControl "5400+30"]

{[%evp 9,71,22,49,43,42,27,46,52,50,46,53,13,35,0,2,-24,-18,-29,-19,-23,-19,-33,28,0,18,17,26,17,74,61,66,67,99,94,109,93,129,127,138,135,118,116,130,75,380,370,388,375,441,428,567,550,766,741,1007,1007,961,938,29966,29967,29988,29989,29990,12353]} 1. d4 {[%emt 0:11:48]} d5 {[%emt 0:00:24]} 2. Nf3 {[%emt 0:00:06]} Nf6 {[%emt 0:01:02]} 3. c3 {[%emt 0:00:10]} e6 {[%emt 0:01:05]} 4. Bg5 {[%emt 0:00:09]} Bd6 {[%emt 0:02:32]} 5. Nbd2 {[%emt 0:01:04]} Nbd7 {[%emt 0:03:03] [#]} 6. e4 $1 {[%emt 0:05:31]} dxe4 {[%emt 0:06:22]} 7. Nxe4 {[%emt 0:00:09]} h6 {[%emt 0:01:49]} 8. Nxd6+ {[%emt 0:05:38] White is slightly better.} cxd6 {[%emt 0:00:06]} 9. Bf4 {[%emt 0:00:04]} Qc7 {[%emt 0:10:39]} 10. Qc2 {[%emt 0:07:36]} b6 {[%emt 0:07:13]} 11. O-O-O {[%emt 0:00:55]} Bb7 {[%emt 0:00:12]} 12. Bd3 {[%emt 0:00:17] Against Be4} O-O {[%emt 0:04:23]} 13. h4 {[%emt 0:02:56]} e5 {[%emt 0:06:51]} 14. dxe5 {[%emt 0:00:11]} dxe5 {[%emt 0:00:07]} 15. Bg3 {[%emt 0:01:42]} Rad8 {[%emt 0:03:44]} ({Black should try} 15... Qc5 $15 16. b4 Qe7) 16. Bf5 {[%emt 0:13:11]} Rfe8 {[%emt 0:10:12]} 17. Rhe1 {[%emt 0:02:01]} Bxf3 {[%emt 0:00:28]} 18. gxf3 {[%emt 0:00:07]} Qc6 {[%emt 0:06:41]} (18... Nh5 $11) 19. Qd3 {[%emt 0:02:03]} Qa8 {[%emt 0:02:16]} 20. Qe2 {[%emt 0:03:31] White is more active.} g6 {[%emt 0:04:27]} 21. Bc2 {[%emt 0:01:10]} Qc6 {[%emt 0:01:06] Dodges Rd6} 22. Rd2 {[%emt 0:01:02]} Nc5 {[%emt 0:15:18] [#]} 23. Rxd8 $1 {[%emt 0:03:37]} (23. Bxe5 $6 Rxd2 24. Qxd2 Qxf3 $11) 23... Rxd8 {[%emt 0:00:06]} 24. Bxe5 {[%emt 0:00:15]} Re8 {[%emt 0:00:09]} 25. f4 {[%emt 0:00:32] f5 is the strong threat.} Nfd7 {[%emt 0:01:09]} 26. Qd2 {[%emt 0:04:01]} ({White should play} 26. h5 {aiming for hxg6.} g5 27. b4 Nxe5 28. fxe5) 26... Qe6 {[%emt 0:05:13][%mdl 8192] [#] This costs Black the game.} (26... Nxe5 $16 {is tougher.} 27. fxe5 Qf3) 27. b4 $1 $18 {[%emt 0:03:19]} Qxa2 {[%emt 0:01:17] White must now prevent ...Qa1+.} 28. bxc5 {[%emt 0:01:04]} Nxc5 {[%emt 0:06:36]} 29. Kd1 {[%emt 0:00:47]} f6 {[%emt 0:00:00]} 30. Bxg6 {[%emt 0:09:11]} (30. Bxf6 Qa1+ 31. Qc1 Rxe1+ 32. Kxe1 Qxc1+ 33. Bd1 Ne4 (33... Qxf4 $2 34. Bd4 $19) (33... Nd3+ $2 34. Ke2 $19) 34. Ke2 Qd2+ (34... Nxf6 $2 35. Bb3+ Kg7 36. Kd3 $19) 35. Kf3 Qd3+ (35... Qxd1+ $2 36. Kxe4 Qe2+ 37. Kd4 $19) 36. Kg2 Qxd1 (36... Nxf6 $2 37. Bf3 $19) 37. h5 Qg4+ (37... Nxf6 38. hxg6 Qg4+ 39. Kf1 Ne4 40. c4 Qf3 41. Kg1 Qxf2+ 42. Kh1 Ng3#) 38. Kf1 Nxf6 39. hxg6 Ne4 (39... Qxg6 40. Ke2 Qe4+ 41. Kd1 Qd3+ 42. Kc1 Ne4 43. Kb2 Qxc3+ 44. Ka2 Qc2+ 45. Ka3 Nc5 46. f3 Qb3#) 40. c4 Qf3 (40... Qxf4 41. Ke2 Qxf2+ 42. Kd3 Nc5+ 43. Kc3 Kg7 44. Kb4 Qb2#) 41. Ke1 Qxf2+ 42. Kd1 Qd2#) 30... Qa4+ {[%emt 0:00:00]} 31. Ke2 {[%emt 0:01:10]} Rxe5+ {[%emt 0:00:00]} 32. fxe5 {[%emt 0:21:13] White threatens Qd8+ and mate.} Qg4+ {[%emt 0:00:00]} 33. f3 {[%emt 0:00:00] Qd8+ would kill now.} Qxg6 {[%emt 0:00:00]} 34. Qd8+ {[%emt 0:00:00] White mates.} Kh7 {[%emt 0:00:00]} 35. Qe7+ {[%emt 0:00:00]} Kg8 {[%emt 0:00:00]} 36. Rd1 {[%emt 0:00:00] Weighted Error Value: White=0.08 (flawless) /Black=0.63.  Loses game:     	---       	Black=1      Mistake:       	White=1     	Black=2      Inaccurate:     	White=4     	Black=5      OK:         	White=8     	Black=4      Best:        	White=4     	---        Strong:       	White=2     	---} (36. Qxf6 Qd3+ 37. Kf2 Qd2+ 38. Kf1 Nd3 39. Qd8+ Kg7 40. Qd7+ Kf8 41. Qd8+ Kg7 42. Qc7+ Kg8 43. Qb8+ Kg7 44. Qb7+ (44. Qxa7+ Kg8 $11) 44... Kh8 45. Qa8+ Kg7 46. Qxa7+ Kf8 47. Qb8+ Kg7 48. Qc7+ Kg8 49. Qd8+ Kg7 50. Qd7+ Kh8 51. Qe8+ Kh7 52. Qf7+ Kh8 53. Qf8+ Kh7 54. Qf7+ Kh8 55. Qf8+ Kh7 56. Qf5+ Kh8 57. Qf8+ $11) (36. exf6 $142 Ne4 37. fxe4 (37. Qxe4 Qxe4+ 38. fxe4 Kf8 39. e5 Kf7 40. Rf1 h5 41. e6+ Kxe6) (37. f7+ Qxf7 38. Qxf7+ Kxf7 $18) 37... Kh8 38. f7 (38. Qxa7 Qg4+ 39. Kd3 Qf3+ 40. Kc4 b5+ 41. Kb4 Qxf6 42. Rg1 Qf8+ 43. Qc5 Qf7) (38. Qd8+ Qg8 39. Rd1 Qxd8 40. Rxd8+ Kh7 41. h5 a5 42. f7 a4 43. f8=Q b5 44. Qh8#) 38... Qg4+ 39. Kd2 Qf4+ 40. Kc2 Qf2+ 41. Kb3) 1-0

[Event "Elegant Academy GM Aspirant-II"]
[Site "Dhaka"]
[Date "2024.02.22"]
[Round "3.3"]
[White "Sriram, Jha"]
[Black "Rahman, Ziaur"]
[Result "0-1"]
[ECO "D31"]
[WhiteElo "2317"]
[BlackElo "2428"]
[Annotator "TA"]
[PlyCount "98"]
[EventDate "2024.02.21"]
[EventType "tourn"]
[EventCountry "BAN"]
[SourceTitle "playchess.com"]
[Source "ChessBase"]
[SourceQuality "1"]
[TimeControl "5400+30"]

{[%evp 10,98,8,14,22,1,7,5,5,7,15,8,10,0,0,-8,7,0,0,0,0,0,4,5,8,0,0,-23,-14,-40,-37,-51,-58,-48,-47,-47,-38,-47,-48,-41,-29,-58,-52,-64,-60,-58,-57,-83,-62,-64,-84,-103,-90,-105,-102,-104,-95,-103,-94,-95,-97,-93,-93,-136,-134,-152,-148,-139,-119,-114,-104,-216,-119,-170,-180,-170,0,-197,-177,-177,-90,-204,0,-649,-600,-659,-659,-639,-630,-685,-679]} 1. d4 {[%emt 0:00:32]} d5 {[%emt 1:31:00]} 2. c4 {[%emt 1:30:58]} e6 {[%emt 0:00:07]} 3. Nc3 {[%emt 1:31:12]} c6 {[%emt 0:02:45]} 4. e4 {[%emt 0:00:14]} dxe4 {[%emt 0:00:23]} 5. Nxe4 {[%emt 0:00:06]} Bb4+ {[%emt 0:00:05]} 6. Nc3 {[%emt 0:00:04]} e5 {[%emt 0:00:26]} 7. Be3 {[%emt 0:00:28]} exd4 {[%emt 0:01:39]} 8. Qxd4 {[%emt 0:00:18]} Qxd4 {[%emt 0:00:59] The position is equal.} 9. Bxd4 {[%emt 0:00:02]} Nf6 {[%emt 0:00:42]} 10. O-O-O {[%emt 1:33:07]} Be6 {[%emt 0:03:40]} 11. Bxf6 {[%emt 0:09:57]} gxf6 {[%emt 1:24:52]} 12. Ne4 {[%emt 0:00:02]} Ke7 {[%emt 0:01:34]} 13. Nf3 {[%emt 0:02:21]} Nd7 {[%emt 0:03:13]} 14. Nd4 {[%emt 0:07:55]} Rhd8 {[%emt 0:05:51]} 15. Be2 {[%emt 0:04:51]} Ba5 {[%emt 0:22:06]} 16. f4 {[%emt 0:10:21]} Bb6 $1 {[%emt 0:03:53]} 17. Nxe6 {[%emt 0:18:21]} fxe6 {[%emt 0:00:53]} 18. Kc2 {[%emt 0:02:12]} f5 {[%emt 0:01:52]} 19. Nc3 {[%emt 0:05:15]} Nf6 {[%emt 0:00:32]} 20. Bf3 {[%emt 0:00:31]} h5 {[%emt 0:01:49]} 21. Ne2 {[%emt 0:06:58]} a5 {[%emt 0:11:10]} 22. Rxd8 {[%emt 0:02:45]} Rxd8 {[%emt 0:00:06]} 23. Rd1 {[%emt 0:00:10]} Rg8 {[%emt 0:02:06]} 24. Rd3 {[%emt 0:00:30]} h4 {[%emt 0:02:55]} 25. Rb3 {[%emt 0:01:43]} Nd7 {[%emt 0:00:05]} 26. c5 {[%emt 0:00:07]} Bxc5 {[%emt 0:00:07]} 27. Rxb7 {[%emt 0:00:02]} Kd6 {[%emt 0:00:37]} 28. Kc3 {[%emt 0:07:09]} e5 {[%emt 0:03:16]} 29. fxe5+ {[%emt 0:00:19]} Nxe5 {[%emt 0:00:06]} 30. Rh7 {[%emt 0:15:18]} Nxf3 {[%emt 0:09:21]} 31. gxf3 $17 {[%emt 0:00:02][%mdl 4096] Endgame. KRB-KRN} Rg2 {[%emt 0:01:05][%csl LRe2,LRh2]} 32. Rh6+ {[%emt 0:01:16]} Kc7 $1 {[%emt 0:00:28] Black is more active.} 33. Kd3 {[%emt 0:02:43]} Rxh2 {[%emt 0:02:36]} 34. Rh5 {[%emt 0:08:52]} h3 {[%emt 0:04:00]} 35. Rxf5 {[%emt 0:00:17]} Bd6 {[%emt 0:00:31]} 36. Rf7+ {[%emt 0:00:29]} Kb6 {[%emt 0:01:29] And now ...Rh1 would win.} 37. Rh7 {[%emt 0:02:06]} Rh1 $1 {[%emt 0:00:39] ...h2 is the strong threat.} 38. f4 {[%emt 0:02:33]} h2 {[%emt 0:01:07]} 39. Kc2 {[%emt 0:00:38] Repels Rd1} a4 {[%emt 0:01:20]} 40. Rh6 {[%emt 0:00:58]} (40. a3 $17 {is the only way for White.}) 40... Bc5 {[%emt 0:05:47]} (40... a3 $1 $19 {Hoping for ...Bf8.} 41. bxa3 (41. Rxd6 $2 {too greedy.} axb2 42. Kxb2 Rg1 $19) 41... Bxf4 (41... Bxa3 42. Rh3 $17) 42. Nxf4 Ra1) 41. a3 {[%emt 0:01:51]} (41. Rh3 $17) 41... Kc7 $19 {[%emt 0:02:07]} 42. Rh7+ {[%emt 0:00:29] [#]} Kb6 $2 {[%emt 0:01:05]} (42... Kd8 $1 $19 {White must now prevent ...Ke8.} 43. Rh3 Kd7 44. Rh7+ Ke6) 43. Nc3 $2 {[%emt 0:01:59]} (43. Rh6 $1 $11 {and White is okay.}) 43... Be3 {[%emt 0:00:55]} 44. Ne2 {[%emt 0:00:13]} Bf2 {[%emt 0:01:11]} (44... c5 $19 {Threatens to win with ...Bd4.} 45. f5 Bg5) 45. Nc3 {[%emt 0:00:20] [#]} (45. Kd2 $17) 45... Be3 $2 {[%emt 0:01:02]} (45... Bd4 $1 $19 {[%cal Rd4c3] Strongly threatening ...Bxc3.} 46. Nxa4+ Ka5) 46. Nxa4+ {[%emt 0:01:00][%mdl 8192]} (46. Ne2 $11) 46... Ka6 {[%emt 0:02:03] Black is clearly winning.} 47. Kb3 {[%emt 0:01:26]} Bxf4 {[%emt 0:01:16]} 48. Nc5+ {[%emt 0:00:04]} Kb5 {[%emt 0:00:49]} 49. Nd3 {[%emt 0:00:10]} Bd6 {[%emt 0:00:47] Weighted Error Value: White=0.32/Black=0.22 (precise) .  Loses game:     	White=2     	---        Missed win:     	---       	Black=2      Mistake:       	White=3     	Black=2      Inaccurate:     	White=3     	---        OK:         	White=16    	Black=17     Best:        	White=1     	Black=4      Strong:       	---       	Black=3} 0-1

[Event "Elegant Academy GM Aspirant-II"]
[Site "Dhaka"]
[Date "2024.02.23"]
[Round "3.4"]
[White "Panesar Vedant"]
[Black "Mohammad Fahad, Rahman"]
[Result "1/2-1/2"]
[ECO "B45"]
[WhiteElo "2452"]
[BlackElo "2418"]
[Annotator "TA"]
[PlyCount "45"]
[EventDate "2024.02.21"]
[EventType "tourn"]
[EventCountry "BAN"]
[SourceTitle "playchess.com"]
[Source "ChessBase"]
[SourceQuality "1"]
[TimeControl "5400+30"]

{[%evp 16,45,24,0,0,-25,-33,-6,0,-35,0,-7,-3,-25,-6,-13,-14,-33,-27,-41,-23,-42,0,0,-29,-26,8,0,0,-18,18,0]} 1. e4 {[%emt 0:02:13]} c5 {[%emt 0:03:19]} 2. Nf3 {[%emt 0:00:07]} Nc6 {[%emt 0:00:19]} 3. d4 {[%emt 0:00:07]} cxd4 {[%emt 0:00:26]} 4. Nxd4 {[%emt 0:00:03]} Nf6 {[%emt 0:00:18]} 5. Nc3 {[%emt 0:00:08]} e6 {[%emt 0:00:10]} 6. Nxc6 {[%emt 0:00:05]} bxc6 {[%emt 1:28:58]} 7. e5 {[%emt 0:00:08]} Nd5 {[%emt 0:00:00]} 8. Ne4 {[%emt 0:00:05]} Qa5+ {[%emt 0:00:00]} 9. Bd2 {[%emt 0:02:36]} Qb6 {[%emt 0:00:00][%cal Ob6d4]} 10. c4 {[%emt 0:19:42]} Qxb2 $1 {[%emt 0:00:00]} 11. cxd5 {[%emt 0:01:21]} Qxe5 {[%emt 0:00:00][%cal Oc6d5]} 12. Bd3 {[%emt 0:00:59] [#] dxc6 is the strong threat.} cxd5 {[%emt 0:00:00]} 13. f4 $132 {[%emt 0:01:54][%mdl 2048] White is fighting back} Qd4 {[%emt 0:00:00]} 14. Nf2 {[%emt 0:00:15] 0-0 would now be deadly.} Bc5 {[%emt 0:00:00][%mdl 1024] Black has compensation.} 15. Rf1 {[%emt 0:01:20]} ({Don't go for} 15. O-O $2 Qxd3 16. Rc1 Bb6 $19) 15... O-O {[%emt 0:00:00] White must now prevent ...e5.} 16. Rc1 {[%emt 0:02:16][%cal Od3h7]} d6 $1 {[%emt 0:00:00]} 17. Be2 {[%emt 0:08:53]} Bd7 {[%emt 0:00:00] [#] Hoping for ...Ba4.} 18. Qb3 {[%emt 0:03:27]} Rab8 {[%emt 0:00:00]} 19. Qc3 {[%emt 0:03:48]} Qa4 {[%emt 0:00:00][%cal Of8c8]} 20. Qa5 {[%emt 0:06:22]} Qd4 {[%emt 0:00:00]} 21. Qc3 {[%emt 0:00:01] The position is equal.} Qa4 {[%emt 0:00:00][%cal Of8c8]} 22. Qa5 {[%emt 0:00:01]} Qd4 {[%emt 0:00:00]} 23. Qc3 {[%emt 0:00:19] Weighted Error Value: White=0.07 (flawless) /Black=0.09 (flawless) .  Inaccurate:     	---       	Black=2      OK:         	White=6     	Black=6      Best:        	White=2     	Black=1      Strong:       	---       	Black=2} 1/2-1/2

[Event "Elegant Academy GM Aspirant-II"]
[Site "Dhaka"]
[Date "2024.02.23"]
[Round "3.5"]
[White "Setyaki, Azarya Jodi"]
[Black "Mayank Chakraborty"]
[Result "1/2-1/2"]
[ECO "C02"]
[WhiteElo "2400"]
[BlackElo "2409"]
[Annotator "TA"]
[PlyCount "60"]
[EventDate "2024.02.21"]
[EventType "tourn"]
[EventCountry "BAN"]
[SourceTitle "playchess.com"]
[Source "ChessBase"]
[SourceQuality "1"]
[TimeControl "5400+30"]

{[%evp 17,60,0,18,19,22,14,18,12,14,0,0,0,3,-64,-9,-57,-7,0,0,0,-5,0,0,-2,-5,0,-4,-14,0,0,0,0,14,6,47,40,44,41,45,37,44,0,0,0,56]} 1. e4 {[%emt 0:02:44]} e6 {[%emt 0:00:08]} 2. d4 {[%emt 0:00:07]} d5 {[%emt 0:00:05]} 3. e5 {[%emt 0:00:11]} c5 {[%emt 0:00:05]} 4. c3 {[%emt 0:00:18]} Nc6 {[%emt 0:00:05]} 5. Nf3 {[%emt 0:00:10]} Bd7 {[%emt 0:00:06]} 6. Be2 {[%emt 0:01:02]} Nge7 {[%emt 0:00:08]} 7. Na3 {[%emt 0:00:18]} cxd4 {[%emt 0:00:07]} 8. cxd4 {[%emt 0:00:08]} Nf5 {[%emt 0:00:07]} 9. Nc2 {[%emt 0:00:07]} Be7 {[%emt 0:00:26]} 10. O-O {[%emt 0:00:50]} O-O {[%emt 0:00:15]} 11. Bd3 {[%emt 0:01:15]} f6 {[%emt 0:00:15]} 12. Bxf5 {[%emt 0:04:26]} exf5 {[%emt 0:00:09]} 13. Bf4 {[%emt 0:02:19]} g5 {[%emt 0:00:17]} 14. exf6 {[%emt 0:09:04]} Bxf6 {[%emt 0:00:11]} 15. Be5 {[%emt 0:11:45]} (15. Bd6 $11 Re8 16. Re1) 15... f4 {[%emt 0:16:35]} ({Better is} 15... Be7 $1 $15) 16. Qd2 {[%emt 0:04:24]} (16. Bxf6 $11 {should be considered.} Qxf6 17. Ne5) 16... g4 {[%emt 0:11:16]} ({Black should play} 16... Be7 $1 $15) 17. Bxf6 $11 {[%emt 0:05:52]} Qxf6 {[%emt 0:00:07]} 18. Ne5 {[%emt 0:02:54]} Nxe5 {[%emt 0:01:47]} 19. dxe5 {[%emt 0:00:05]} Qxe5 {[%emt 0:00:04][%cal Od7c6]} 20. Nb4 {[%emt 0:03:46][%cal Of1e1]} Rf5 {[%emt 0:10:01]} 21. Rfe1 {[%emt 0:03:38]} Qd6 {[%emt 0:01:49]} 22. Rad1 {[%emt 0:01:43]} Bc6 {[%emt 0:04:29]} 23. Qd4 {[%emt 0:00:49]} Raf8 {[%emt 0:06:01]} 24. Nd3 {[%emt 0:03:22]} a6 {[%emt 0:04:23]} 25. g3 {[%emt 0:03:54]} Qf6 {[%emt 0:15:15]} 26. Qxf6 {[%emt 0:00:12]} ({Don't play} 26. Nxf4 Qxd4 27. Rxd4 R8f7 $16) 26... R8xf6 {[%emt 0:00:05]} 27. Nxf4 {[%emt 0:00:06]} Kf7 {[%emt 0:00:11]} 28. Rd4 {[%emt 0:00:21]} h5 {[%emt 0:00:07]} 29. Nd3 {[%emt 0:00:12][%cal Oh2h3]} Bb5 {[%emt 0:00:20]} 30. Nf4 {[%emt 0:00:05]} (30. Ne5+ $11 Kg7 31. a4) 30... Bc6 {[%emt 0:00:05] Weighted Error Value: White=0.11 (very precise) /Black=0.12 (very precise) .  Mistake:       	White=3     	Black=2      Inaccurate:     	White=1     	Black=1      OK:         	White=10    	Black=8      Best:        	White=2     	Black=1} 1/2-1/2